[Event "182nd Stay Safe Play From Home series"]
[Site "T#646404Emanuel Laske"]
[Date "2020.05.28"]
[Round "8"]
[White "SoulofWolf"]
[Black "Rogan"]
[Result "0-1"]
[WhiteElo "2114"]
[BlackElo "2232"]
[PlyCount "36"]
[EventDate "2020.05.28"]
[EventType "swiss (blitz)"]
[TimeControl "60"]

1. Nf3 {[%emt 0:00:01]} d5 {[%emt 0:00:00]} 2. c4 {[%emt 0:00:00]} c6 {[%emt 0:00:00]} 3. e3 {[%emt 0:00:00]} Bg4 {[%emt 0:00:02]} 4. b3 {[%emt 0:00:00]} Nf6 {[%emt 0:00:00]} 5. Be2 {[%emt 0:00:01]} Nbd7 {[%emt 0:00:00]} 6. O-O {[%emt 0:00:01]} e6 {[%emt 0:00:00]} 7. Bb2 {[%emt 0:00:00]} Bd6 {[%emt 0:00:00]} 8. a3 {[%emt 0:00:00]} Qc7 {[%emt 0:00:01]} 9. d4 {[%emt 0:00:00]} Bxf3 {[%emt 0:00:01]} 10. Bxf3 {[%emt 0:00:01]} Bxh2+ {[%emt 0:00:00]} 11. Kh1 {[%emt 0:00:00]} Bd6 {[%emt 0:00:01]} 12. Nd2 {[%emt 0:00:00]} e5 {[%emt 0:00:01]} 13. g3 {[%emt 0:00:01]} e4 {[%emt 0:00:01]} 14. Bg2 {[%emt 0:00:01]} h5 {[%emt 0:00:01]} 15. Bh3 {[%emt 0:00:02]} Bxg3 {[%emt 0:00:04]} 16. fxg3 {[%emt 0:00:01]} Qxg3 {[%emt 0:00:00]} 17. Bg2 {[%emt 0:00:01]} Ng4 {[%emt 0:00:01]} 18. Nf3 {[%emt 0:00:05]} exf3 {[%emt 0:00:01] SoulofWolf poddaje siê (Lag: Av=0.28s, max=0.4s)} 0-1